fUSD/lending_fUSD_20240818
["ID","MTS","AMOUNT","RATE_DAILY","PERIOD"]
[335192798,1723968637879,-1076.67749202,0.00010799,2]
[335192800,1723968637888,-1542.40918319,0.000108,2]
[335192802,1723968637897,-15448.7148,0.000108,2]
[335192804,1723968637906,-1800.0,0.000108,3]
[335192806,1723968637915,-301.03010292,0.00010815,2]
[335192808,1723968637924,-150.0,0.00010821,2]
[335192810,1723968637933,-150.0,0.00010823,2]
[335192812,1723968637941,-150.0,0.00010825,2]
[335192814,1723968637951,-150.0,0.00010828,2]
[335192816,1723968637966,-300.0,0.00010828,2]
[335192818,1723968637975,-150.0,0.0001083,2]
[335192820,1723968637984,-150.0,0.00010844,2]
[335192822,1723968637993,-553.00385382,0.00010852,2]
[335192824,1723968638004,-353.51434234,0.00010852,2]
[335192826,1723968638013,-522.9745894,0.00010861,2]
[335192827,1723968638022,-150.0,0.00010868,2]
[335192829,1723968638031,-150.0,0.00010869,2]
[335192830,1723968638041,-150.0,0.00010874,2]
[335192831,1723968638050,-150.0,0.00010881,2]
[335192832,1723968638060,-218.99354596,0.00010888,2]
[335192833,1723968638069,-218.64566621,0.00010888,2]
[335192834,1723968638078,-164.40811307,0.00010888,2]
[335192835,1723968638087,-531.33260631,0.00010888,2]
[335192836,1723968638097,-1216.234,0.0001089,2]
[335192837,1723968638106,-5843.0,0.0001089,2]
[335192838,1723968638116,-3726.0,0.0001089,2]
[335192839,1723968638127,-315.235,0.0001089,2]
[335192840,1723968638136,-21761.0,0.0001089,2]
[335192841,1723968638145,-150.0,0.0001089,2]
[335192842,1723968638154,-203.18479,0.0001089,2]
[335192843,1723968638163,-203.77747582,0.0001089,2]
[335192844,1723968638172,-297.90978804,0.0001089,2]
[335192846,1723968638181,-150.0,0.00010891,2]
[335192848,1723968638191,-150.0,0.00010892,2]
[335192850,1723968638200,-150.0,0.00010896,2]
[335192852,1723968638209,-150.0,0.00010899,2]
[335192854,1723968638218,-765.23562227,0.00010899,2]
[335192856,1723968638227,-765.23562223,0.00010899,2]
[335192858,1723968638237,-765.23562223,0.00010899,2]
[335192860,1723968638246,-765.23562223,0.00010899,2]
[335192862,1723968638257,-765.23562223,0.00010899,2]
[335192864,1723968638266,-765.23562223,0.00010899,2]
[335192866,1723968638275,-765.23562223,0.00010899,2]
[335192868,1723968638285,-765.23562223,0.00010899,2]
[335192870,1723968638294,-765.23562223,0.00010899,2]
[335192872,1723968638303,-765.23562223,0.000109,2]
[335192874,1723968638312,-2400.0,0.000109,3]
[335192875,1723968638321,-187.1817227,0.000109,2]
[335192877,1723968638330,-150.0,0.00010904,2]
[335192879,1723968638339,-150.0,0.00010909,2]
[335192881,1723968638349,-150.0,0.00010913,2]
[335192883,1723968638359,-150.0,0.00010913,2]
[335192885,1723968638369,-150.0,0.00010948,2]
[335192887,1723968638379,-307.90693662,0.00010949,2]
[335192889,1723968638388,-785.72,0.00010959,2]
[335192891,1723968638398,-150.0,0.00010959,2]
[335192893,1723968638408,-250.0,0.00010959,2]
[335192895,1723968638418,-851.66,0.00010959,2]
[335192897,1723968638428,-202.99768405,0.00010979,2]
[335192899,1723968638437,-529.89907547,0.00010979,2]
[335192901,1723968638447,-150.0,0.00010982,2]
[335192903,1723968638456,-300.0,0.00010983,2]
[335192905,1723968638466,-150.0,0.00010983,2]
[335192907,1723968638475,-150.0,0.00010985,2]
[335192909,1723968638484,-150.0,0.00010986,2]
[335192911,1723968638494,-500.0,0.00010989,2]
[335192913,1723968638503,-1257.0,0.0001099,2]
[335192915,1723968638512,-1923.0,0.0001099,2]
[335192917,1723968638522,-622.0,0.0001099,2]
[335192919,1723968638531,-1542.0,0.0001099,2]
[335192920,1723968638540,-153.311,0.0001099,2]
[335192922,1723968638550,-1895.0,0.0001099,2]
[335192924,1723968638560,-559.49,0.0001099,2]
[335192926,1723968638569,-150.0,0.00010996,2]
[335192928,1723968638578,-723.9502236,0.00010998,2]
[335192930,1723968638587,-22616.2759814,0.00010998,2]
[335192932,1723968638597,-6201.6509512,0.00010998,2]
[335192934,1723968638606,-500.0,0.00010998,2]
[335192936,1723968638616,-492.86681366,0.00010999,2]
[335192938,1723968638626,-1166.94953749,0.00010999,3]
[335192940,1723968638636,-500.0,0.00010999,2]
[335192942,1723968638645,-500.0,0.00010999,2]
[335192944,1723968638655,-500.0,0.00010999,2]
[335192946,1723968638665,-500.0,0.00010999,2]
[335192948,1723968638674,-500.0,0.00010999,2]
[335192950,1723968638683,-187.39620617,0.00010999,2]
[335192952,1723968638691,-500.0,0.00010999,2]
[335192954,1723968638700,-500.0,0.00010999,2]
[335192956,1723968638709,-500.0,0.00010999,2]
[335192957,1723968638718,-500.0,0.00010999,2]
[335192959,1723968638727,-500.0,0.00010999,2]
[335192961,1723968638737,-228.74,0.00010999,2]
[335192963,1723968638746,-500.0,0.00010999,2]
[335192965,1723968638756,-500.0,0.00010999,2]
[335192967,1723968638766,-500.0,0.00010999,2]
[335192969,1723968638775,-500.0,0.00010999,2]
[335192971,1723968638784,-427.72842261,0.00010999,2]
[335192973,1723968638793,-2257.09385144,0.00010999,2]
[335192975,1723968638802,-500.0,0.00010999,2]
[335192977,1723968638811,-500.0,0.00010999,2]
[335192979,1723968638820,-500.0,0.00010999,2]
[335192981,1723968638829,-500.0,0.00010999,2]
[335192983,1723968638838,-500.0,0.00010999,2]
[335192985,1723968638847,-500.0,0.00010999,2]
[335192987,1723968638855,-500.0,0.00010999,2]
[335192989,1723968638865,-500.0,0.00010999,2]
[335192991,1723968638874,-500.0,0.00010999,2]
[335192993,1723968638883,-535.2547558,0.00010999,2]
[335192995,1723968638892,-500.0,0.00010999,2]
[335192997,1723968638901,-500.0,0.00010999,2]
[335192999,1723968638910,-500.0,0.00010999,2]
[335193001,1723968638919,-500.0,0.00010999,2]
[335193002,1723968638927,-500.0,0.00010999,2]
[335193004,1723968638936,-597.29620133,0.00010999,2]
[335193006,1723968638946,-500.0,0.00010999,2]
[335193008,1723968638955,-500.0,0.00010999,2]
[335193010,1723968638964,-500.0,0.00010999,2]
[335193012,1723968638975,-500.0,0.00010999,2]
[335193014,1723968638984,-500.0,0.00010999,2]
[335193016,1723968638994,-500.0,0.00010999,2]
[335193018,1723968639003,-241.24016473,0.00010999,2]
[335193020,1723968639012,-500.0,0.00010999,2]
[335193022,1723968639021,-500.0,0.00010999,2]
[335193024,1723968639030,-500.0,0.00010999,2]
[335193026,1723968639038,-500.0,0.00010999,2]
[335193028,1723968639047,-500.0,0.00010999,2]
[335193030,1723968639056,-607.51,0.00010999,2]
[335193032,1723968639065,-500.0,0.00010999,2]
[335193034,1723968639074,-500.0,0.00010999,2]
[335193036,1723968639083,-500.0,0.00010999,2]
[335193038,1723968639092,-500.0,0.00010999,2]
[335193040,1723968639101,-523.23411463,0.00010999,2]
[335193041,1723968639110,-500.0,0.00010999,2]
[335193043,1723968639119,-515.02153439,0.00010999,2]
[335193045,1723968639128,-361.06901889,0.00010999,2]
[335193047,1723968639137,-500.0,0.00010999,2]
[335193049,1723968639146,-500.0,0.00010999,2]
[335193051,1723968639155,-500.0,0.00010999,2]
[335193053,1723968639164,-500.0,0.00010999,2]
[335193055,1723968639173,-500.0,0.00010999,2]
[335193057,1723968639183,-500.0,0.00010999,2]
[335193059,1723968639191,-500.0,0.00010999,2]
[335193061,1723968639201,-500.0,0.00010999,2]
[335193063,1723968639210,-500.0,0.00010999,2]
[335193065,1723968639219,-500.0,0.00010999,2]
[335193067,1723968639228,-500.0,0.00010999,2]
[335193069,1723968639238,-500.0,0.00010999,2]
[335193071,1723968639247,-500.0,0.00010999,2]
[335193073,1723968639256,-500.0,0.00010999,2]
[335193075,1723968639265,-500.0,0.00010999,2]
[335193077,1723968639274,-500.0,0.00010999,2]
[335193079,1723968639283,-500.0,0.00010999,2]
[335193081,1723968639292,-348.26413265,0.00010999,2]
[335193083,1723968639301,-500.0,0.00010999,2]
[335193085,1723968639310,-500.0,0.00010999,2]
[335193087,1723968639319,-500.0,0.00010999,2]
[335193089,1723968639328,-300.22782914,0.00010999,2]
[335193091,1723968639337,-500.0,0.00010999,2]
[335193093,1723968639346,-500.0,0.00010999,2]
[335193095,1723968639355,-500.0,0.00010999,2]
[335193097,1723968639365,-500.0,0.00010999,2]
[335193099,1723968639375,-222.63443899,0.00010999,2]
[335193101,1723968639384,-575691.80435603,0.00011,2]
[335193103,1723968639393,-2000.0,0.00011,3]
[335193105,1723968639402,-1392266.55889131,0.00011,2]
[335193121,1723968639544,-8777.56439929,0.00011,2]
[335193123,1723968639557,-8355.461751,0.00011,2]
[335193125,1723968639568,-636.74999999,0.00011,2]
[335193136,1723968639659,-820.36506701,0.00010699,2]
[335193138,1723968639667,-305404.02724553,0.00011,2]
[335193144,1723968639716,-65076.82359592,0.00011,2]
[335193162,1723968639880,-1916.60939772,0.00011,2]
[335193164,1723968639891,-1015.75187423,0.00011,2]
[335193167,1723968639902,-3162.60000008,0.00011,2]
[335193169,1723968639912,-327.65782289,0.00011,2]
[335193172,1723968639932,-1211.348,0.0001089,2]
[335193174,1723968639942,-393371.51103264,0.00011,2]
[335193176,1723968639950,-478144.10885269,0.00011,2]
[335193178,1723968639959,-2998510.84799549,0.00011,2]
[335193180,1723968639969,-367239.39049131,0.00011,2]
[335193182,1723968639979,-1015.74125319,0.00011,2]
[335193184,1723968639989,-2109351.92347723,0.00011,2]
[335193208,1723968640205,-1352.59422969,0.00011,2]
[335193210,1723968640217,-1529.43690522,0.00011,2]
[335193212,1723968640228,-447.51464124,0.00011,2]
[335193214,1723968640239,-645.18180464,0.00011,2]
[335193735,1723968645599,-553.00385382,0.00010799,2]
[335193736,1723968645609,-359.85614391,0.0001088,2]
[335193737,1723968645709,-1078.97023871,0.0001088,2]
[335193738,1723968645721,-11256.66116314,0.0001088,2]
[335193824,1723968648757,300.11351407,0.0001,2]
[335193825,1723968649022,542.85033673,0.0001,2]
[335193831,1723968680500,413.26180093,0.0001,2]
[335193836,1723968694398,500.0,8.22e-05,2]
[335193837,1723968694873,500.0,9.275e-05,2]
[335193838,1723968695248,500.0,9.275e-05,2]
[335193839,1723968695413,500.0,8.22e-05,2]
[335193840,1723968696007,500.0,9.59e-05,2]
[335193849,1723968731710,500.0,9.275e-05,2]
[335193850,1723968731772,776.85,9.937e-05,2]
[335193854,1723968751598,181.93364741,0.0001,2]
[335193859,1723968766114,500.0,0.0001,2]
[335193860,1723968766860,500.0,0.0001,2]
[335193861,1723968767620,500.0,0.0001,2]
[335193862,1723968768372,601.94,0.0001,2]
[335193866,1723968819502,413.26180093,0.0001,2]
[335193867,1723968821768,300.11351407,0.0001,2]
[335193868,1723968828320,170.59001801,0.0001,2]
[335193869,1723968833706,500.0,0.0001,2]
[335193871,1723968840606,181.93364741,0.0001,2]
[335193872,1723968860411,250.0,9.856e-05,2]
[335193873,1723968894260,200.0,9.856e-05,2]
[335193874,1723968903789,300.11351407,0.0001,2]
[335193878,1723968963411,500.0,0.0001,2]
[335193879,1723968963689,500.0,0.0001,2]
[335193880,1723968964188,500.0,0.0001,2]
[335193881,1723968965126,181.93364741,0.0001,2]
[335193882,1723968965231,500.0,0.0001,2]
[335193883,1723968966123,500.0,0.0001,2]
[335193884,1723968966874,500.0,0.0001,2]
[335193885,1723968967710,500.0,0.0001,2]
[335193886,1723968968465,500.0,0.0001,2]
[335193887,1723968969608,500.0,0.0001,2]
[335193888,1723968970002,638.25,0.0001,2]
[335193889,1723968981311,170.49877635,0.0001,2]
[335193890,1723968982508,413.26180093,0.0001,2]
[335193891,1723968988969,175.47,9.852e-05,2]
[335193892,1723968998502,300.11351407,0.0001,2]
[335193893,1723969015803,480.25,8.219e-05,2]
[335193894,1723969035167,500.0,0.0001,2]
[335193895,1723969050596,11304.25,9.822e-05,2]
[335193896,1723969051473,1994.19,9.822e-05,2]
[335193899,1723969065137,181.70725664,0.0001,2]
[335193900,1723969081534,413.26180093,0.0001,2]
[335193902,1723969086198,159.44,9.827e-05,2]
[335193903,1723969086751,201.98,9.821e-05,2]
[335193904,1723969112514,160.86,9.828e-05,2]
[335193905,1723969127905,22968.69180933,9.828e-05,2]
[335193906,1723969127928,931.30819067,9.828e-05,2]
[335193907,1723969144852,500.0,9.828e-05,2]
[335193911,1723969224541,262.4,9.83e-05,2]
[335193912,1723969242516,37.6,9.909e-05,2]
[335193913,1723969242537,270.46435349,9.909e-05,2]
[335193914,1723969309357,29.53564651,9.804e-05,2]
[335193915,1723969309378,220.46435349,9.804e-05,2]
[335193916,1723969335199,79.53564651,9.943e-05,2]
[335193917,1723969335220,140.1539951,9.943e-05,2]
[335193920,1723969508189,159.8460049,8.219e-05,2]
[335193921,1723969508220,296.3839951,8.219e-05,2]
[335193922,1723969536750,3.6160049,9.5e-05,2]
[335193923,1723969536773,300.0,9.5e-05,2]
[335193924,1723969536794,300.0,9.5e-05,2]
[335193925,1723969536823,21136.2339951,9.5e-05,2]
[335193926,1723969555588,23675.68834874,6.94e-05,2]
[335193940,1723969632760,169.68,9.749e-05,2]
[335193954,1723969729248,155.0,9.943e-05,2]
[335193968,1723969827272,790.08,9.715e-05,2]
[335193977,1723969831690,-1258.20462876,9.988e-05,2]
[335193979,1723969831699,-550.0,0.0001,2]
[335193981,1723969831708,-1127.63616515,0.00010009,2]
[335193982,1723969831718,-300.0,0.00010025,2]
[335193984,1723969831727,-1444.8273586,0.00010026,2]
[335193985,1723969831736,-1298.45974265,0.00010026,2]
[335193987,1723969831745,-459.87597912,0.00010097,2]
[335193988,1723969831754,-763.37704292,0.00010097,2]
[335193990,1723969831763,-522.9745894,0.00010097,2]
[335193992,1723969831775,-175.81263979,0.00010097,2]
[335193993,1723969831784,-656.29306752,0.00010097,2]
[335193995,1723969831794,-210.52,0.00010265,2]
[335193997,1723969831803,-10000.0,0.00010441,2]
[335193998,1723969831813,-456.23,0.00010464,2]
[335194000,1723969831822,-299.99,0.00010471,2]
[335194001,1723969831831,-815.19,0.00010471,2]
[335194002,1723969831842,-155.0,0.00010471,2]
[335194003,1723969831852,-202.99768405,0.00010471,2]
[335194004,1723969831861,-164.66981099,0.00010471,2]
[335194005,1723969831870,-150.0,0.00010504,2]
[335194006,1723969831880,-9999.99,0.00010505,2]
[335194007,1723969831889,-499.99,0.00010505,2]
[335194008,1723969831899,-304.12480458,0.00010566,2]
[335194009,1723969831908,-531.33260631,0.00010566,2]
[335194010,1723969831918,-421.32,0.000106,2]
[335194011,1723969831927,-180.73,0.000106,2]
[335194012,1723969831936,-530.33,0.000106,2]
[335194013,1723969831946,-150.0,0.000106,2]
[335194014,1723969831956,-531.27,0.000106,2]
[335194015,1723969831966,-421.32,0.000106,2]
[335194016,1723969831975,-150.0,0.000106,2]
[335194017,1723969831984,-421.32,0.000106,2]
[335194018,1723969831994,-1000.0,0.0001062,2]
[335194019,1723969832003,-2500.0,0.0001062,2]
[335194020,1723969832013,-500.0,0.00010645,2]
[335194021,1723969832023,-531.34,0.000107,2]
[335194022,1723969832033,-421.32,0.000107,2]
[335194023,1723969832042,-421.32,0.000107,2]
[335194024,1723969832052,-150.0,0.000107,2]
[335194025,1723969832061,-712.27,0.000107,2]
[335194026,1723969832071,-421.32,0.000107,2]
[335194028,1723969832080,-23737.16126312,0.0001071,2]
[335194030,1723969832089,-3607.5151,0.0001072,2]
[335194031,1723969832098,-93348.22857409,0.0001072,2]
[335194034,1723969832122,-11084.0785141,0.0001072,2]
[335194042,1723969838436,-371.939179,0.00010009,2]
[335194067,1723969839780,-135.67855181,0.00010009,2]
[335194068,1723969839790,-155.0,0.00010097,2]
[335194069,1723969839800,-277.63574042,0.00010713,2]
[335194070,1723969839810,-3052.71453694,0.0001072,2]
[335194071,1723969840056,-771.144,0.0001072,2]
[335194159,1723969919068,500.0,9.275e-05,2]
[335194180,1723970070038,410.6,8.219e-05,2]
[335194184,1723970142169,1405.14,9.962e-05,2]
[335194191,1723970242912,223.86,9.818e-05,2]
[335194196,1723970289968,367.93,9.824e-05,2]
[335194214,1723970558064,150.0,9.943e-05,2]
[335194215,1723970558093,198.26413265,9.943e-05,2]
[335194225,1723970656207,150.0,7.823e-05,2]
[335194227,1723970670578,648.9231726,9.943e-05,2]
[335194235,1723970766246,427.07,8.219e-05,2]
[335194236,1723970770490,212.92,9.75e-05,2]
[335194257,1723970876852,155.0,9.943e-05,2]
[335194261,1723970920822,1000.0,9.749e-05,2]
[335194309,1723971032041,-280.515,9.999e-05,2]
[335194310,1723971032098,-977.68962876,9.999e-05,2]
[335194311,1723971032108,-1258.20462876,9.999e-05,2]
[335194312,1723971032119,-2112.26107616,0.0001,2]
[335194313,1723971032133,-202.99768405,0.00010009,2]
[335194314,1723971032143,-427.07,0.00010463,2]
[335194315,1723971032152,-155.0,0.00010471,2]
[335194316,1723971032161,-1462.0,0.000105,2]
[335194317,1723971032172,-150.0,0.00010603,2]
[335194318,1723971032181,-150.0,0.00010619,2]
[335194319,1723971032191,-9664.7802,0.0001062,2]
[335194320,1723971032201,-658.0173,0.0001062,2]
[335194321,1723971032210,-2044.7516,0.0001062,2]
[335194322,1723971032219,-2849.1645,0.0001062,2]
[335194323,1723971032228,-4489.0015,0.0001062,2]
[335194324,1723971032238,-934.4656,0.0001062,2]
[335194325,1723971032246,-544.4083,0.0001062,2]
[335194326,1723971032258,-1636.9819,0.0001062,2]
[335194327,1723971032267,-2102.35869,0.0001062,2]
[335194328,1723971032276,-499.99,0.0001062,2]
[335194329,1723971032285,-8490.22,0.0001062,2]
[335194330,1723971032295,-1850.1656,0.0001065,2]
[335194331,1723971032304,-13227.346,0.0001065,2]
[335194332,1723971032313,-1000.0,0.0001065,2]
[335194333,1723971032323,-2102.3587,0.0001066,2]
[335194334,1723971032332,-2102.35869,0.000107,2]
[335194335,1723971032341,-3566.11880229,0.00010719,2]
[335194336,1723971032350,-500.0,0.00010719,2]
[335194337,1723971032360,-500.0,0.00010719,2]
[335194338,1723971032369,-2000.0,0.0001072,2]
[335194339,1723971032378,-200.0,0.0001072,2]
[335194340,1723971032387,-200.0,0.0001072,2]
[335194341,1723971032396,-2102.35869,0.0001072,2]
[335194342,1723971032405,-2102.35869,0.0001072,2]
[335194343,1723971032415,-200.0,0.0001072,2]
[335194344,1723971032424,-150.0,0.00010729,2]
[335194345,1723971032433,-171.35047999,0.00010738,2]
[335194346,1723971032442,-2102.35869,0.0001074,2]
[335194347,1723971032451,-150.0,0.00010747,2]
[335194348,1723971032460,-71757.0,0.0001075,2]
[335194349,1723971032470,-150.0,0.00010779,2]
[335194350,1723971032479,-500.0,0.00010779,2]
[335194351,1723971032489,-500.0,0.00010779,2]
[335194352,1723971032498,-500.0,0.00010779,2]
[335194353,1723971032508,-500.0,0.00010779,2]
[335194354,1723971032517,-500.0,0.00010779,2]
[335194355,1723971032526,-500.0,0.00010779,2]
[335194356,1723971032535,-500.0,0.00010779,2]
[335194357,1723971032544,-150.0,0.00010786,2]
[335194358,1723971032554,-150.0,0.00010792,2]
[335194359,1723971032563,-410.6535,0.00010795,2]
[335194360,1723971032572,-500.0,0.00010798,2]
[335194361,1723971032581,-500.0,0.00010798,2]
[335194362,1723971032590,-500.0,0.00010798,2]
[335194363,1723971032600,-500.0,0.00010798,2]
[335194364,1723971032609,-500.0,0.00010798,2]
[335194365,1723971032619,-500.0,0.00010798,2]
[335194366,1723971032628,-500.0,0.00010798,2]
[335194367,1723971032637,-500.0,0.00010798,2]
[335194368,1723971032646,-500.0,0.00010798,2]
[335194369,1723971032656,-500.0,0.00010798,2]
[335194370,1723971032665,-49511.53247886,0.00010799,2]
[335194371,1723971032674,-7295.67523287,0.000108,2]
[335194372,1723971032683,-2357.89277135,0.000108,2]
[335194373,1723971032692,-531.34,0.000108,2]
[335194374,1723971032702,-150.0,0.000108,2]
[335194375,1723971032711,-150.0,0.000108,2]
[335194376,1723971032720,-435.71,0.000108,2]
[335194377,1723971032729,-519.26,0.000108,2]
[335194378,1723971032738,-300.46,0.000108,2]
[335194379,1723971032748,-421.32,0.000108,2]
[335194380,1723971032758,-150.0,0.000108,2]
[335194381,1723971032767,-635.68,0.000108,2]
[335194382,1723971032776,-154.46,0.000108,2]
[335194383,1723971032785,-150.0,0.000108,2]
[335194384,1723971032794,-1270.61,0.000108,2]
[335194385,1723971032803,-150.0,0.000108,2]
[335194386,1723971032812,-531.34,0.000108,2]
[335194387,1723971032822,-421.32,0.000108,2]
[335194388,1723971032831,-150.0,0.000108,2]
[335194389,1723971032839,-150.0,0.000108,2]
[335194390,1723971032849,-150.0,0.000108,2]
[335194391,1723971032858,-356.76,0.000108,2]
[335194392,1723971032867,-835.92,0.000108,2]
[335194393,1723971032877,-150.0,0.000108,2]
[335194394,1723971032886,-531.34,0.000108,2]
[335194395,1723971032895,-835.92,0.000108,2]
[335194396,1723971032905,-150.0,0.000108,2]
[335194397,1723971032914,-421.32,0.000108,2]
[335194398,1723971032923,-150.0,0.000108,2]
[335194399,1723971032933,-356.76,0.000108,2]
[335194400,1723971032943,-150.0,0.000108,2]
[335194401,1723971032952,-835.92,0.000108,2]
[335194402,1723971032962,-150.0,0.000108,2]
[335194403,1723971032971,-421.32,0.000108,2]
[335194404,1723971032981,-150.0,0.000108,2]
[335194405,1723971032991,-531.34,0.000108,2]
[335194406,1723971033001,-356.76,0.000108,2]
[335194407,1723971033011,-150.0,0.000108,2]
[335194408,1723971033020,-150.0,0.000108,2]
[335194409,1723971033030,-2000.0,0.00010827,2]
[335194410,1723971033040,-200.0,0.00010827,2]
[335194411,1723971033050,-200.0,0.00010827,2]
[335194412,1723971033059,-200.0,0.00010827,2]
[335194413,1723971033069,-500.0,0.00010829,2]
[335194414,1723971033079,-500.0,0.00010829,2]
[335194415,1723971033088,-50617.75,0.0001083,3]
[335194416,1723971033098,-150.0,0.00010834,2]
[335194417,1723971033109,-1648.28364767,0.00010852,2]
[335194418,1723971033119,-303.83432888,0.00010852,2]
[335194419,1723971033133,-150.0,0.0001086,2]
[335194420,1723971033143,-500.0,0.00010879,2]
[335194421,1723971033153,-500.0,0.00010879,2]
[335194422,1723971033163,-500.0,0.00010879,2]
[335194423,1723971033173,-500.0,0.00010879,2]
[335194424,1723971033183,-500.0,0.00010879,2]
[335194425,1723971033193,-500.0,0.00010879,2]
[335194426,1723971033203,-500.0,0.00010879,2]
[335194427,1723971033214,-500.0,0.00010879,2]
[335194428,1723971033223,-500.0,0.00010879,2]
[335194429,1723971033233,-500.0,0.00010879,2]
[335194430,1723971033242,-500.0,0.00010879,2]
[335194431,1723971033252,-500.0,0.00010879,2]
[335194432,1723971033262,-500.0,0.00010879,2]
[335194433,1723971033272,-500.0,0.00010879,2]
[335194434,1723971033283,-500.0,0.00010879,2]
[335194435,1723971033292,-500.0,0.00010879,2]
[335194436,1723971033302,-113571.41364868,0.0001088,2]
[335194437,1723971033311,-29019.9015,0.0001088,2]
[335194438,1723971033320,-150.0,0.00010889,2]
[335194439,1723971033330,-6869.66042312,0.0001089,3]
[335194440,1723971033351,-3956.26353275,0.0001089,3]
[335194450,1723971037873,-202.99768405,9.999e-05,2]
[335194451,1723971037882,-1648.28364767,0.00010799,2]
[335194452,1723971037892,-1599.21665465,0.0001089,3]
[335194453,1723971037903,-780.69675395,0.0001089,3]
[335194454,1723971037931,-41502.16263553,0.0001089,3]
[335194455,1723971037941,-167.7305538,0.0001089,2]
[335194456,1723971037951,-500.0,0.00010899,2]
[335194457,1723971037961,-485.23782552,0.00010899,2]
[335194458,1723971037989,-14.76217448,0.00010899,2]
[335194459,1723971037998,-150.35,0.000109,2]
[335194460,1723971038010,-356.76,0.000109,2]
[335194461,1723971038020,-835.92,0.000109,2]
[335194462,1723971038029,-531.34,0.000109,2]
[335194463,1723971038038,-421.32,0.000109,2]
[335194464,1723971038048,-150.0,0.000109,2]
[335194465,1723971038058,-356.76,0.000109,2]
[335194466,1723971038068,-150.0,0.000109,2]
[335194467,1723971038077,-531.34,0.000109,2]
[335194468,1723971038086,-835.92,0.000109,2]
[335194469,1723971038096,-421.32,0.000109,2]
[335194470,1723971038105,-835.92,0.000109,2]
[335194471,1723971038115,-421.32,0.000109,2]
[335194472,1723971038126,-531.34,0.000109,2]
[335194473,1723971038139,-356.76,0.000109,2]
[335194474,1723971038148,-531.34,0.000109,2]
[335194475,1723971038158,-421.32,0.000109,2]
[335194476,1723971038167,-150.0,0.000109,2]
[335194477,1723971038349,-835.92,0.000109,2]
[335194478,1723971038359,-835.92,0.000109,2]
[335194479,1723971038368,-532.87,0.000109,2]
[335194480,1723971038377,-421.32,0.000109,2]
[335194481,1723971038386,-421.32,0.000109,2]
[335194482,1723971038395,-150.0,0.000109,2]
[335194483,1723971038404,-835.92,0.000109,2]
[335194485,1723971038413,-421.32,0.000109,2]
[335194486,1723971038422,-45.93090146,0.000109,2]
[335194487,1723971038434,-789.98909854,0.000109,2]
[335194489,1723971038443,-150.0,0.000109,2]
[335194490,1723971038452,-835.92,0.000109,2]
[335194492,1723971038461,-421.32,0.000109,2]
[335194493,1723971038470,-835.92,0.000109,2]
[335194495,1723971038480,-417.87,0.000109,2]
[335194496,1723971038489,-150.0,0.000109,2]
[335194498,1723971038498,-1359.09,0.000109,2]
[335194499,1723971038507,-150.0,0.000109,2]
[335194501,1723971038521,-150.0,0.000109,2]
[335194502,1723971038533,-421.32,0.000109,2]